Cogmind - Beta 10.2 @@@ ROGUE MODE // 2020.10.31 @ 17:31:25 Player: PhenomPhear Result: Destroyed by DAS Turret with DAS Cannon Performance ------------- Evolutions (1) 500 Regions Visited (5) 1000 Robots Destroyed (65) 325 Value Destroyed (1298) 1298 Prototype IDs (7) 140 Alien Tech Used (0) 0 Bonus (89) 89 TOTAL SCORE: 3352 Bonus ------- High Alert Combat Kills 230 Friendly Fire -141 Cogmind --------- Core Integrity 0/400 Matter 111/300 Energy 310/310 System Corruption 1% Temperature Cool (0) Movement Treading (180) Ox1 Location -9/Exiles Parts ------- > --- POWER (1) -------- Reinforced Fission Core > --- PROPULSION (2) --- Light Treads Light Treads > --- UTILITY (3) ------ High-capacity Storage Unit Experimental Targeting Computer Light Armor Plating > --- WEAPON (3) ------- Assault Rifle Heavy Assault Rifle 8R-AWN's Boregun > --- INVENTORY (12) --- Light Treads Experimental Heat Sink Large Storage Unit Gravity Neutralizing Apparatus Gravity Neutralizing Apparatus AS-neutralizer No. 17b Mini Grenade Launcher Plasma Cutter Peak State ------------ > --- POWER ------------ Reinforced Fission Core > --- PROPULSION ------- Light Treads > --- UTILITY ---------- Experimental Heat Sink High-capacity Storage Unit Experimental Targeting Computer > --- WEAPON ----------- Assault Rifle Heavy Assault Rifle 8R-AWN's Boregun > --- INVENTORY -------- Gravity Neutralizing Apparatus Gravity Neutralizing Apparatus AS-neutralizer No. 17b Mini Grenade Launcher Plasma Cutter [Rating: 36] Favorites ----------- Power Heavy Ion Engine Engine Heavy Ion Engine Power Core Reinforced Fission Core Propulsion Light Treads Treads Light Treads Utility Large Storage Unit Device Gravity Neutralizing Apparatus Storage Large Storage Unit Processor Experimental Targeting Computer Protection Light Armor Plating Weapon Improved Assault Rifle Energy Gun Beam Rifle Ballistic Gun Improved Assault Rifle Ballistic Cannon Light Cannon Launcher Mini Grenade Launcher Special Weapon Mining Laser Build | -11 -10 -10 -9 -9 -9 ------- Run | Scr Mat Min Mat Min Exi Slots Evolved 2 | . . . 2 . . Power . | . . . . . . Propulsion . | . . . . . . Utility 1 | . . . 1 . . Weapon 1 | . . . 1 . . Parts Attached 63 | 6 2 . 29 . 26 Power 3 | 1 . . 1 . 1 Engine 2 | 1 . . 1 . . Core 1 | . . . . . 1 Reactor . | . . . . . . Propulsion 14 | 2 . . 8 . 4 Treads 14 | 2 . . 8 . 4 Leg . | . . . . . . Wheel . | . . . . . . Hover . | . . . . . . Flight . | . . . . . . Utility 16 | 1 . . 4 . 11 Device 3 | . . . . . 3 Storage 6 | 1 . . 4 . 1 Processor 1 | . . . . . 1 Hackware . | . . . . . . Protection 6 | . . . . . 6 Artifact . | . . . . . . Weapon 30 | 2 2 . 16 . 10 Energy Gun 3 | 1 . . 2 . . Energy Cannon . | . . . . . . Ballistic Gun 18 | 1 . . 9 . 8 Ballistic Cannon 2 | . 2 . . . . Launcher 5 | . . . 4 . 1 Special Weapon 2 | . . . 1 . 1 Impact Weapon . | . . . . . . Slashing Weapon . | . . . . . . Piercing Weapon . | . . . . . . Special Melee Weapon . | . . . . . . Unidentified Prototypes 7 | . . . 2 . 5 Parts Lost 18 | . . . 3 . 15 Power 1 | . . . . . 1 Propulsion 4 | . . . 1 . 3 Utility 5 | . . . . . 5 Weapon 8 | . . . 2 . 6 Highest Loss Streak 15 | . . . 1 . 15 Average Slot Usage (%) 92 | . 84 85 97 100 74 Engine 10 | . 14 14 11 11 3 Treads 21 | . 28 28 22 22 14 Storage 25 | . 14 14 31 33 8 Protection 1 | . . . . . 9 Energy Gun 1 | . 5 . 1 . . Ballistic Gun 21 | . 6 . 23 22 25 Ballistic Cannon 5 | . 15 28 4 . . Launcher 2 | . . . 2 11 2 Naked Turns . | . . . . . . Heaviest Build 81 | 12 15 15 81 79 79 Greatest Support 40 | 40 40 40 40 40 40 Greatest Overweight (x) 3 | . . . 2 1 3 Average Overweight (x) . | . . . 1 1 . Largest Inventory Capacity 24 | 6 6 6 24 24 24 Average Capacity 16 | 5 6 6 19 24 9 Most Carried 23 | . 2 2 23 23 23 Average Carried 12 | . . 2 15 23 7 Final Capacity 24 | 6 6 6 24 24 12 Final Carried 23 | . 2 2 23 23 8 Class Distribution -------------------- 29% | Mutant 22% | Gunner 20% | Hauler-Gunner 18% | Hauler-Mutant 5% | Scavenger-Gunner Dominant Class ---------------- Mutant | -10/Materials Mutant | -10/Mines Gunner | -9/Materials Hauler-Mutant | -9/Mines Scavenger-Gunner | -9/Exiles Resources | -11 -10 -10 -9 -9 -9 ----------- Run | Scr Mat Min Mat Min Exi Matter Collected 1833 | 165 163 46 1155 30 274 Remotely . | . . . . . . Salvage Created 2104 | . 132 14 1796 32 130 Parts 139 | . 6 2 123 1 7 Haulers Intercepted 6 | . . . 6 . . Recyclers Shooed 2 | . . . 2 . . Parts Field Recycled . | . . . . . . Retrieved Matter . | . . . . . . Parts Self-Destructed . | . . . . . . Prevented . | . . . . . . Kills | -11 -10 -10 -9 -9 -9 ------- Run | Scr Mat Min Mat Min Exi Combat Hostiles Destroyed 46 | . 4 1 33 . 8 Guns 26 | . 2 . 21 . 3 Cannons 5 | . 2 1 2 . . AOE 14 | . . . 9 . 5 Classes Destroyed 12 | . 1 2 8 . 1 Worker 4 | . . . 4 . . Builder 2 | . . . 2 . . Tunneler 2 | . . 1 1 . . Hauler 6 | . . . 6 . . Recycler 2 | . . . 1 1 . Watcher 3 | . . . 3 . . Swarmer 11 | . . 1 10 . . Grunt 16 | . 4 . 12 . . Brawler 2 | . . . 2 . . Duelist 2 | . . . 2 . . Sentry 7 | . . . 7 . . Assembled 7 | . . . . . 7 Best Kill Streak 9 | . 2 1 9 1 7 Combat Bots Only 7 | . 2 1 6 . 7 Max Kills in Single Turn 4 | . 1 1 3 1 4 Gunslinging . | . . . . . . Exploded 4 | . . . 3 . 4 Melee . | . . . . . . Uniques/NPCs Destroyed 1 | . . . . . 1 8R-AWN (-9/Exiles) Combat | -11 -10 -10 -9 -9 -9 -------- Run | Scr Mat Min Mat Min Exi Damage Taken 3217 | . 92 32 1294 . 1799 Core 501 | . 48 17 162 . 274 Absorbed by Shields . | . . . . . . Core Remaining (%) 87 | 100 . 74 . . . Volleys Fired 181 | . 13 4 116 3 45 Largest 3 | . 2 2 3 1 3 Hottest 126 | . 70 70 126 30 69 Shots Fired 390 | . 26 8 263 3 90 Gun 307 | . 12 . 208 . 87 Cannon 54 | . 14 8 32 . . Launcher 27 | . . . 22 3 2 Special 2 | . . . 1 . 1 Kinetic 333 | . 20 8 218 . 87 Thermal 30 | . 6 . 23 . 1 Explosive 6 | . . . 1 3 2 Electromagnetic 21 | . . . 21 . . Robot Hit Streak 34 | . 6 7 34 . 14 Robot Miss Streak 4 | . 1 1 4 . 3 Penetration Max . | . . . . . . Secondary Targets 1 | . . . . . 1 Max Gunslinging Chain 1 | . . . . . 1 Shots Hit Robots 281 | . 18 6 185 . 72 Core Hits 109 | . 8 2 77 . 22 Critical Hits 3 | . . 1 1 . 1 Critical Kills 2 | . . 1 1 . . Critical Parts Destroyed 1 | . . . . . 1 Melee Attacks . | . . . . . . Impact . | . . . . . . Slashing . | . . . . . . Piercing . | . . . . . . Sneak Attacks . | . . . . . . Combat Hostiles . | . . . . . . Follow-up Attacks . | . . . . . . Damage Inflicted 5291 | . 255 132 3447 3 1454 Guns 3138 | . 83 . 2096 . 959 Cannons 697 | . 172 128 397 . . Explosions 1394 | . . . 908 . 486 Melee . | . . . . . . Ramming 61 | . . 4 46 3 8 Kinetic 3578 | . 217 128 2274 . 959 Thermal 552 | . 38 . 513 . 1 Explosive 486 | . . . . . 486 Electromagnetic 614 | . . . 614 . . Impact . | . . . . . . Slashing . | . . . . . . Piercing . | . . . . . . Highest Corruption 1 | . . . 1 1 1 Average Corruption 1 | . . . 1 1 1 Corruption Purged . | . . . . . . Effects 9 | . . . 5 1 3 Message Errors 5 | . . . 5 . . Energy Discharges 1 | . . . . . 1 Data Loss (minor) 1 | . . . . 1 . Targeting Errors 1 | . . . . . 1 Weapon Failures 1 | . . . . . 1 Overload Shots . | . . . . . . Overflow Damage 53 | . 2 . 38 . 13 Projectiles 23 | . 2 . 21 . . Explosions 30 | . . . 17 . 13 Melee . | . . . . . . Knockbacks 8 | . 2 2 4 . . Impact . | . . . . . . Kinetic 7 | . 2 2 3 . . Secondary 1 | . . . 1 . . Self-Inflicted Damage 140 | . . . 95 . 45 Shots 7 | . . . 5 . 2 Rammed 7 | . . 1 5 . 1 Targets Rammed 9 | . . 1 6 1 1 Kicked . | . . . . . . Crushed 2 | . . . 1 1 . Highest Temperature 140 | . 90 27 123 . 140 Average Temperature 34 | . 33 12 30 . 66 Received Heat Transfer 428 | . 51 . 357 . 20 Siege Activations . | . . . . . . Robots Corrupted 2 | . . . 2 . . Combat Hostiles 1 | . . . 1 . . Parts Fried 1 | . . . 1 . . Impact Corruptions . | . . . . . . Robots Melted . | . . . . . . Combat Hostiles . | . . . . . . Parts Melted 2 | . . . 2 . . Heat Transferred 1167 | . 111 . 1047 . 9 Parts Sabotaged . | . . . . . . Parts Stolen . | . . . . . . Parts Stripped . | . . . . . . Power Chain Reactions 7 | . . . 7 . . Missiles Intercepted . | . . . . . . Alert | -11 -10 -10 -9 -9 -9 ------- Run | Scr Mat Min Mat Min Exi Peak Influence 890 | . 115 79 890 326 . Initial 321 | . . 44 30 321 . Average 446 | . 64 52 559 321 . Maximum Alert Level 3 | . . . 3 1 . Low Security (%) 34 | 100 100 100 21 . . Level 1 15 | . . . 9 100 . Level 2 14 | . . . 19 . . Level 3 35 | . . . 48 . . Level 4 . | . . . . . . Level 5 . | . . . . . . High Security . | . . . . . . Max Security . | . . . . . . Squads Dispatched 5 | . 1 . 4 . . Investigation . | . . . . . . Extermination . | . . . . . . Reinforcement 3 | . 1 . 2 . . Assault 2 | . . . 2 . . Garrison . | . . . . . . Intercept . | . . . . . . Construction Impeded . | . . . . . . Haulers Reinforced . | . . . . . . Stealth | -11 -10 -10 -9 -9 -9 --------- Run | Scr Mat Min Mat Min Exi Distress Signals 5 | . . 1 4 . . Communications Jammed . | . . . . . . Distress Signals . | . . . . . . Times Spotted 99 | . 8 2 81 . 8 Peak Tracking Total 9 | . 5 2 7 . 9 Tactical Retreats 14 | . . . 14 . . Traps | -11 -10 -10 -9 -9 -9 ------- Run | Scr Mat Min Mat Min Exi Traps Triggered . | . . . . . . Indirectly . | . . . . . . Trap Hack Attempts . | . . . . . . Triggered . | . . . . . . Disarmed . | . . . . . . Reprogrammed . | . . . . . . Reused . | . . . . . . Traps Extracted . | . . . . . . Installed . | . . . . . . Triggered 1 | . . . 1 . . Machines | -11 -10 -10 -9 -9 -9 ---------- Run | Scr Mat Min Mat Min Exi Machines Disabled 1 | . . . 1 . . Max in Single Turn 1 | . . . 1 . . Machines Sabotaged . | . . . . . . Garrisons Compromised . | . . . . . . Overloaded Fab Kills . | . . . . . . Fab Network Shutdowns . | . . . . . . Hacking | -11 -10 -10 -9 -9 -9 --------- Run | Scr Mat Min Mat Min Exi Machines Accessed 6 | . 2 . 4 . . Terminals 6 | . 2 . 4 . . Fabricators . | . . . . . . Repair Stations . | . . . . . . Recycling Units . | . . . . . . Scanalyzers . | . . . . . . Garrison Access . | . . . . . . Total Hacks 9 | . 3 . 6 . . Successful 3 | . . . 3 . . Failed 6 | . 3 . 3 . . Catastrophic . | . . . . . . Database Lockouts . | . . . . . . Manual 4 | . . . 4 . . Terminals 9 | . 3 . 6 . . Fabricators . | . . . . . . Repair Stations . | . . . . . . Recycling Units . | . . . . . . Scanalyzers . | . . . . . . Garrison Access . | . . . . . . Terminal Hacks 2 | . . . 2 . . Branch Access Points 1 | . . . 1 . . Locate Traps 1 | . . . 1 . . Fabricator Hacks . | . . . . . . Repair Station Hacks . | . . . . . . Recycling Unit Hacks . | . . . . . . Scanalyzer . | . . . . . . Garrison Access Hacks . | . . . . . . Unauthorized Hacks 1 | . . . 1 . . Terminals 1 | . . . 1 . . Track 1 | . . . 1 . . Fabricators . | . . . . . . Repair Stations . | . . . . . . Recycling Units . | . . . . . . Scanalyzers . | . . . . . . Garrison Access . | . . . . . . Data Cores Recovered . | . . . . . . Used . | . . . . . . Hacking Detections 4 | . 2 . 2 . . Full Trace Events . | . . . . . . Feedback Events . | . . . . . . Feedback Blocked . | . . . . . . Robot Schematics Acquired . | . . . . . . Robots Built . | . . . . . . Matter . | . . . . . . Time . | . . . . . . Total Robot Build Rating . | . . . . . . Part Schematics Acquired . | . . . . . . Parts Built . | . . . . . . Matter . | . . . . . . Time . | . . . . . . Total Part Build Rating . | . . . . . . Parts Repaired . | . . . . . . Time . | . . . . . . Parts Recycled . | . . . . . . Recycled Matter . | . . . . . . Retrieved Matter . | . . . . . . Retrieved Components . | . . . . . . Parts Scanalyzed . | . . . . . . Part Schematics Acquired . | . . . . . . Parts Damaged . | . . . . . . Bothacking | -11 -10 -10 -9 -9 -9 ------------ Run | Scr Mat Min Mat Min Exi Used RIF Installer . | . . . . . . Robots Hacked . | . . . . . . Non-combat . | . . . . . . Combat . | . . . . . . Robot Hacks Applied . | . . . . . . Relay Couplers Released . | . . . . . . Robots Rewired . | . . . . . . Allies Hacked . | . . . . . . Hacks Repelled . | . . . . . . Allies | -11 -10 -10 -9 -9 -9 -------- Run | Scr Mat Min Mat Min Exi Total Allies . | . . . . . . Largest Group . | . . . . . . Highest-Rated Group . | . . . . . . Highest-Rated Ally . | . . . . . . Total Orders . | . . . . . . Ally Attacks . | . . . . . . Total Damage . | . . . . . . Kills . | . . . . . . Allies Corrupted . | . . . . . . Allies Melted . | . . . . . . Intel | -11 -10 -10 -9 -9 -9 ------- Run | Scr Mat Min Mat Min Exi Robot Analysis Total . | . . . . . . Derelict Logs Recovered 2 | . . . . 2 . Drone Launches . | . . . . . . Drone Recoveries . | . . . . . . Exploration | -11 -10 -10 -9 -9 -9 ------------- Run | Scr Mat Min Mat Min Exi Turns Passed 3456 | 68 233 250 2181 242 482 Spaces Moved 1566 | 39 112 146 961 131 177 Core 22 | 2 . . . . 20 Treads 1544 | 37 112 146 961 131 157 Legs . | . . . . . . Wheels . | . . . . . . Hover . | . . . . . . Flight . | . . . . . . Fastest Speed 50 | 50 160 160 160 180 50 Average Speed 175 | 154 160 160 181 180 169 Slowest Speed 220 | 160 160 160 200 180 220 Overloaded Moves . | . . . . . . Propulsion Burnouts . | . . . . . . Robots Hopped . | . . . . . . Cave-ins Triggered . | . . . . . . Exploration Rate (%) 33 | 4 27 26 69 37 37 Regions Visited 5 Branch Regions 3 Pre-discovered Areas 1 | . . . . 1 . Known Exits Taken 1 | . . . 1 . . Unknown Exits Taken 4 | 1 1 1 . 1 . Scrap Searched 2 | . . 1 . 1 . Spaces Dug 24 | . . . 13 11 . Terrain Destroyed 77 | . . . 31 33 13 Melee . | . . . . . . Projectile 1 | . . . 1 . . AOE 76 | . . . 30 33 13 Terrain Rammed . | . . . . . . Walls Destroyed . | . . . . . . Machines Disabled . | . . . . . . Actions | -11 -10 -10 -9 -9 -9 --------- Run | Scr Mat Min Mat Min Exi Total 1910 | 44 141 154 1173 134 264 Wait 35 | . 12 4 19 . . Move 1561 | 38 111 145 960 130 177 Hop . | . . . . . . Pick Up 36 | . 1 . 27 . 8 Fast Attach 30 | 6 2 . 6 . 16 Attach 6 | . . . 3 . 3 Detach 2 | . 1 . . . 1 Swap 27 | . . . 20 . 7 Drop 23 | . 1 . 16 . 6 Fire 181 | . 13 4 116 3 45 Melee . | . . . . . . Ram 1 | . . . . . 1 Kick . | . . . . . . Crush 8 | . . 1 6 1 . Escape Stasis . | . . . . . . Rewire . | . . . . . . Trap . | . . . . . . Miscellaneous . | . . . . . . Route ------- -11/Scrapyard -10/Materials -10/Mines -9/Materials (discovered 5 exits: [*Mat x3] / *Min x2) -9/Mines (discovered 2 exits: [*Exi] / [*Zio]) -9/Exiles History --------- Turn | Location | Event 43 | -11/Scrapyard | Discovered new exit (range 16) 69 | -11/Scrapyard | Entered Materials 277 | -10/Materials | Discovered new exit (range 10) 302 | -10/Materials | Entered Mines 309 | -10/Mines | Build established: Mutant 379 | -10/Mines | Assembled infested the area 528 | -10/Mines | Discovered new exit (range 5) 552 | -10/Mines | Entered Materials 552 | -9/Materials | Evolved 2 slots: Utility x1, Weapon x1 620 | -9/Materials | Identified exit to Mines 1352 | -9/Materials | First assault squad dispatched 1613 | -9/Materials | Build established: Gunner 1724 | -9/Materials | Discovered new exit (range 10) 2039 | -9/Materials | Discovered new exit (range 3) 2197 | -9/Materials | Build established: Hauler-Gunner 2452 | -9/Materials | Discovered new exit (range 16) 2733 | -9/Materials | Entered Mines 2742 | -9/Mines | Met a Derelict bent on vengeance 2784 | -9/Mines | Build established: Hauler-Mutant 2796 | -9/Mines | Learned location of Zion (-7) 2862 | -9/Mines | A Derelict revealed a hidden shortcut to a safe place 2966 | -9/Mines | Deemed a non-threat by the Exiles lab entrance 2966 | -9/Mines | Discovered new exit (range 5) 2975 | -9/Mines | Entered Exiles 3020 | -9/Exiles | Met 8R-AWN 3099 | -9/Exiles | Attacked by the Exiles 3110 | -9/Exiles | Core integrity fell below 50% 3141 | -9/Exiles | Destroyed 7 combat bots 3234 | -9/Exiles | Core integrity fell below 20% 3265 | -9/Exiles | Destroyed 8R-AWN 3278 | -9/Exiles | Found Prototype Ballistic Gun 3284 | -9/Exiles | Found Prototype Processor 3284 | -9/Exiles | Identified Exp. Targeting Computer 3286 | -9/Exiles | Lost 15 parts (1p3n5u6w) 3293 | -9/Exiles | Identified 8R-AWN's Boregun 3308 | -9/Exiles | Found Prototype Device 3314 | -9/Exiles | Identified AS-neutralizer No. 17b 3457 | -9/Exiles | Destroyed by DAS Turret with DAS Cannon Last Messages --------------- 03272_ Acquired Lgt. Treads. 03278_ Acquired Prototype Ballistic Gun. 03281_ Acquired Prototype Device. 03284_ Acquired Prototype Processor. 03284_ Identified Exp. Targeting Computer. 03290_ Acquired Rnf. Fission Core. 03293_ Identified 8R-AWN's Boregun. 03294_ Acquired Prototype Device. 03297_ System corrupted: Energy discharge (-62). 03297_ Acquired Hcp. Storage Unit. 03300_ The unstable cave ceiling collapses. 03301_ Acquired Prototype Device. 03301_ Identified Gravity Neutralizing Apparatus. 03308_ The unstable cave ceiling collapses. 03308_ Acquired Prototype Device. 03312_ Identified Exp. Heat Sink. 03314_ Identified AS-neutralizer No. 17b. 03322_ Acquired Lgt. Treads. 03326_ Acquired Lgt. Armor Plating. 03348_ Acquired Lrg. Storage Unit. Map ----- +----------------------------------------------------+ | ????????????????????????????# ???????????????? | | ????????????????????????????# #??????????????? | | ????????????????????????????# #??????????????? | | ????????????????????????????# #?????""???????? | | ????????????????????????????# #??"""""???????? | | ???????????????????????????## ###"" """??????? | | ???????????????????????????#" """??????? | | ???????????????????????????#" ""??????? | | ???????????????????????????#" ""??????? | | ???????????????????????????#" ""??????? | | ???????????????????????????#" """?????? | | ???????????????????????????#" """?????? | | ????????????????????????????# """?????? | | ????????????????????????????# """?????? | | ????????????????????????????#" "X" """?????? | | ????????????????????????????#" """ ???????? | | ????????????????????????????#" """"""????????? | | ???????????????????????????##" #######????????? | | ??????????????????????????##"" #??????????????? | | ?????????????????????######"" #??????????????? | | ??????????????????"###""""""" ##?????????????? | | ????????????? ? """""" " "" ##???#########? | | ??????????? "" """ " #####""""""""" | | ?????????? " " " """ """ | | ?????????? "" " | | ?????????? @ " " | | ?????????? " | | ?????????? " | | ??????????? | | ??????????? """""" | | ???????????? ######""" | | ???????????? ""#?????#####""" | | ???????????? """#??????????##""" | | ????????????? """#????????????#"""" | | ????????????? "??????????????#"" | | ?????????????? ????????????????#"""" | | ?????????????? ????????????????"" | | ????????????????????????????????" | | ??????????????????????????????? | | ??????????????????????????????? | | ?????????????????????????????? " | | ??????????????????????????????? "" """ | | ??????????????????????????????? ##""" " " ""#" | | ??????????????????????????????????####""" """##""" | | ?????????????????????????????????????###""""#?#### | | ???????????????????????????????????????####??????? | | ?????????????????????????????????????????????????? | | ?????????????????????????????????????????????????? | | ?????????????????????????????????????????????????? | | ?????????????????????????????????????????????????? | +----------------------------------------------------+ Best States ------------- Heat Dissipation 28 Energy Generation 19 Energy Capacity 310 Matter Stores 300 Matter Capacity 300 Sight Range 16 Terrain Scan Density 10 Additional Mass Support 12 Armor Coverage 450 Evasion (%) 50 Targeting Accuracy 12 Recoil Reduction 2 Item Schematics ----------------- None Robot Schematics ------------------ None Fabricated ------------ Nothing Alien Tech Used ----------------- None Achievements -------------- None Challenges ------------ None Game ------ Seed grenademodifiedprocessor Manual? 1 Play Time 00:22:21 Cumulative 1071.5 hours Start 2020.10.31 @ 17:10:09 End 2020.10.31 @ 17:31:25 Sessions 1 Manual Loads 0 Difficulty Rogue Special Mode None Game No. 663 Rogue 663 Adventurer 0 Explorer 0 Win Type - Total 18 Types 10/1/4/3/0/0/0/0/0 Lore% 90 Gallery% 93 Achievement% 81 Wizard Run 0 Options --------- ASCII 0 Keyboard 0 Movement Mouse Keybinds 0 Fullscreen 2 Font 24/Smallcaps Map View 76x50 Tactical HUD 1 Map Filters NONE Filters NONE Steam 1 RUN: a6c0cb34-bffd-46ac-8306-71a2d8d0bfe2